lending/lending_fUSD_20241229
["ID","MTS","AMOUNT","RATE_DAILY","PERIOD"]
[347114413,1735503062755,-500.0,0.00017924,2]
[347114414,1735503062765,-500.0,0.00017924,2]
[347114415,1735503062774,-500.0,0.00017924,2]
[347114416,1735503062784,-500.0,0.00017924,2]
[347114417,1735503062793,-500.0,0.00017924,2]
[347114418,1735503062802,-500.0,0.00017924,2]
[347114419,1735503062811,-500.0,0.00017924,2]
[347114420,1735503062820,-215.9,0.00017924,2]
[347114421,1735503062829,-500.0,0.00017924,2]
[347114422,1735503062838,-353.4,0.00017924,2]
[347114423,1735503062847,-500.0,0.00017924,2]
[347114424,1735503062856,-500.0,0.00017924,2]
[347114425,1735503062865,-500.0,0.00017924,2]
[347114426,1735503062874,-500.0,0.00017924,2]
[347114427,1735503062884,-500.0,0.00017924,2]
[347114428,1735503062893,-500.0,0.00017924,2]
[347114429,1735503062903,-455.57,0.00017924,2]
[347114430,1735503062912,-299.51,0.00017924,2]
[347114431,1735503062921,-500.0,0.00017924,2]
[347114432,1735503062931,-587.4,0.00017924,2]
[347114433,1735503062940,-548.29,0.00017924,2]
[347114434,1735503062948,-500.0,0.00017924,2]
[347114435,1735503062957,-500.0,0.00017924,2]
[347114436,1735503062966,-500.0,0.00017924,2]
[347114437,1735503062977,-500.0,0.00017924,2]
[347114438,1735503062987,-500.0,0.00017924,2]
[347114439,1735503062997,-500.0,0.00017924,2]
[347114440,1735503063144,-667.24,0.00017924,2]
[347114441,1735503063154,-500.0,0.00017924,2]
[347114442,1735503063164,-500.0,0.00017924,2]
[347114443,1735503063178,-1151.13,0.00017924,2]
[347114444,1735503063188,-500.0,0.00017924,2]
[347114445,1735503063198,-500.0,0.00017924,2]
[347114446,1735503063209,-500.0,0.00017924,2]
[347114447,1735503063220,-500.0,0.00017924,2]
[347114448,1735503063231,-170.03,0.00017924,2]
[347114449,1735503063241,-500.23,0.00017924,2]
[347114450,1735503063251,-368.72,0.00017924,2]
[347114451,1735503063262,-500.0,0.00017924,2]
[347114452,1735503063273,-1940.6,0.00017924,2]
[347114453,1735503063282,-500.0,0.00017924,2]
[347114454,1735503063291,-500.0,0.00017924,2]
[347114455,1735503063301,-500.0,0.00017924,2]
[347114456,1735503063311,-500.0,0.00017924,2]
[347114457,1735503063320,-500.0,0.00017924,2]
[347114458,1735503063329,-500.0,0.00017924,2]
[347114459,1735503063339,-500.0,0.00017924,2]
[347114460,1735503063349,-500.0,0.00017924,2]
[347114461,1735503063360,-629.96,0.00017924,2]
[347114462,1735503063369,-500.0,0.00017924,2]
[347114463,1735503063379,-588.4,0.00017924,2]
[347114464,1735503063389,-500.0,0.00017924,2]
[347114465,1735503063399,-217.09,0.00017924,2]
[347114466,1735503063409,-1169.28,0.00017924,2]
[347114467,1735503063419,-500.0,0.00017924,2]
[347114468,1735503063429,-155.36,0.00017924,2]
[347114469,1735503063439,-500.0,0.00017924,2]
[347114470,1735503063449,-942.62,0.00017924,2]
[347114471,1735503063459,-351.3,0.00017924,2]
[347114472,1735503063469,-888.62,0.00017924,2]
[347114473,1735503063479,-500.0,0.00017924,2]
[347114474,1735503063489,-434.82,0.00017924,2]
[347114475,1735503063500,-500.0,0.00017924,2]
[347114476,1735503063510,-5874.67,0.00017924,2]
[347114477,1735503063520,-596.6,0.00017924,2]
[347114478,1735503063529,-500.0,0.00017925,2]
[347114479,1735503063539,-500.0,0.00017925,2]
[347114480,1735503063548,-1960.19,0.00017925,2]
[347114481,1735503063558,-175.98,0.00017925,2]
[347114482,1735503063568,-1628.51,0.00017925,2]
[347114483,1735503063578,-550.69,0.00017925,2]
[347114484,1735503063588,-500.0,0.00017925,2]
[347114485,1735503063598,-500.0,0.00017925,2]
[347114486,1735503063608,-500.0,0.00017925,2]
[347114487,1735503063617,-218.16,0.00017925,2]
[347114488,1735503063627,-378.58,0.00017925,2]
[347114489,1735503063637,-500.0,0.00017925,2]
[347114490,1735503063647,-500.0,0.00017925,2]
[347114491,1735503063656,-500.0,0.00017925,2]
[347114492,1735503063666,-609.65,0.00017925,2]
[347114493,1735503063676,-500.0,0.00017925,2]
[347114494,1735503063686,-500.0,0.00017925,2]
[347114495,1735503063697,-172.69,0.00017925,2]
[347114496,1735503063706,-844.57,0.00017925,2]
[347114497,1735503063716,-500.0,0.00017925,2]
[347114498,1735503063726,-500.0,0.00017925,2]
[347114499,1735503063736,-1819.23,0.00017925,2]
[347114500,1735503063747,-500.0,0.00017925,2]
[347114501,1735503063756,-1000.4,0.00017925,2]
[347114502,1735503063767,-336.21,0.00017925,2]
[347114503,1735503063777,-500.0,0.00017925,2]
[347114504,1735503063787,-500.0,0.00017925,2]
[347114505,1735503063797,-3895.18,0.00017925,2]
[347114506,1735503063806,-500.0,0.00017925,2]
[347114507,1735503063816,-500.0,0.00017925,2]
[347114508,1735503063826,-500.0,0.00017925,2]
[347114509,1735503063837,-500.0,0.00017925,2]
[347114510,1735503063847,-1046.25,0.00017925,2]
[347114511,1735503063858,-500.0,0.00017925,2]
[347114512,1735503063868,-2932.69,0.00017925,2]
[347114513,1735503063879,-501.01,0.00017925,2]
[347114514,1735503063889,-894.47,0.00017925,2]
[347114515,1735503063899,-500.0,0.00017925,2]
[347114516,1735503063910,-673.33,0.00017925,2]
[347114517,1735503063920,-631.12,0.00017925,2]
[347114518,1735503063931,-5304.54,0.00017947,2]
[347114519,1735503063940,-250.0,0.0001797,2]
[347114520,1735503063950,-300.0,0.0001797,2]
[347114521,1735503063960,-600.0,0.00018,2]
[347114522,1735503063970,-2000.0,0.00018,2]
[347114523,1735503063981,-500.0,0.00018001,2]
[347114524,1735503063990,-845.45,0.00018001,2]
[347114525,1735503064001,-1780.83,0.00018001,2]
[347114526,1735503064011,-525.17,0.00018001,2]
[347114527,1735503064022,-843.1,0.00018001,2]
[347114528,1735503064032,-500.0,0.00018001,2]
[347114529,1735503064042,-1000.0,0.00018001,2]
[347114530,1735503064051,-654.57,0.00018001,2]
[347114531,1735503064061,-1099.79,0.00018001,2]
[347114532,1735503064071,-603.24,0.00018001,2]
[347114533,1735503064081,-608.79,0.00018001,2]
[347114534,1735503064091,-1529.19,0.00018001,2]
[347114535,1735503064101,-500.0,0.00018001,2]
[347114536,1735503064111,-500.0,0.00018002,2]
[347114537,1735503064120,-773.37,0.00018002,2]
[347114538,1735503064130,-500.0,0.00018002,2]
[347114539,1735503064140,-500.0,0.00018002,2]
[347114540,1735503064149,-860.07,0.00018002,2]
[347114541,1735503064158,-500.0,0.00018002,2]
[347114542,1735503064168,-500.0,0.00018002,2]
[347114543,1735503064182,-848.88,0.00018002,2]
[347114544,1735503064192,-2000.0,0.0001801,2]
[347114545,1735503064202,-377.28,0.00018015,2]
[347114546,1735503064212,-3680.265405,0.0001802,2]
[347114547,1735503064222,-1000.0,0.00018029,2]
[347114548,1735503064232,-1716.0,0.0001804,2]
[347114549,1735503064242,-622.44179523,0.0001804,2]
[347114550,1735503064257,-1000.0,0.00018056,2]
[347114551,1735503064267,-1000.0,0.00018083,2]
[347114552,1735503064279,-14350.31,0.00018099,2]
[347114553,1735503064289,-1000.0,0.00018111,2]
[347114554,1735503064299,-153.64,0.0001812,2]
[347114555,1735503064308,-1000.0,0.00018138,2]
[347114556,1735503064318,-1000.0,0.00018166,2]
[347114557,1735503064328,-1000.0,0.00018193,2]
[347114558,1735503064338,-522.08,0.00018198,2]
[347114559,1735503064348,-500.0,0.00018198,2]
[347114560,1735503064359,-165.04,0.00018198,2]
[347114561,1735503064370,-500.0,0.00018198,2]
[347114562,1735503064379,-500.0,0.00018198,2]
[347114563,1735503064389,-500.0,0.00018198,2]
[347114564,1735503064398,-500.0,0.00018198,2]
[347114565,1735503064407,-500.0,0.00018198,2]
[347114566,1735503064417,-500.0,0.00018198,2]
[347114567,1735503064426,-500.0,0.00018198,2]
[347114568,1735503064435,-500.0,0.00018198,2]
[347114569,1735503064445,-500.0,0.00018198,2]
[347114570,1735503064455,-500.0,0.00018198,2]
[347114571,1735503064469,-500.0,0.00018198,2]
[347114572,1735503064484,-500.0,0.00018198,2]
[347114573,1735503064497,-236.64686483,0.00018198,2]
[347114574,1735503064509,-544.45,0.00018198,2]
[347114575,1735503064525,-500.0,0.00018198,2]
[347114576,1735503064539,-500.0,0.00018198,2]
[347114577,1735503064553,-277.53,0.00018198,2]
[347114578,1735503064567,-462.88,0.00018198,2]
[347114579,1735503064580,-500.0,0.00018198,2]
[347114580,1735503064591,-221.07,0.00018198,2]
[347114581,1735503064605,-500.0,0.00018198,2]
[347114582,1735503064618,-500.0,0.00018198,2]
[347114583,1735503064631,-532.62,0.00018198,2]
[347114584,1735503064646,-500.0,0.00018198,2]
[347114585,1735503064660,-500.0,0.00018198,2]
[347114586,1735503064674,-449.82,0.00018198,2]
[347114587,1735503064688,-500.0,0.00018198,2]
[347114588,1735503064702,-500.0,0.00018198,2]
[347114589,1735503064716,-500.0,0.00018198,2]
[347114590,1735503064731,-500.0,0.00018198,2]
[347114591,1735503064745,-500.0,0.00018198,2]
[347114592,1735503064760,-500.0,0.00018198,2]
[347114593,1735503064771,-500.0,0.00018198,2]
[347114594,1735503064783,-578.82,0.00018198,2]
[347114595,1735503064797,-500.0,0.00018198,2]
[347114596,1735503064811,-500.0,0.00018198,2]
[347114597,1735503064823,-667.24,0.00018198,2]
[347114598,1735503064835,-323.24,0.00018198,2]
[347114599,1735503064848,-500.0,0.00018198,2]
[347114600,1735503064864,-1151.13,0.00018198,2]
[347114601,1735503064875,-500.0,0.00018198,2]
[347114602,1735503064886,-500.0,0.00018198,2]
[347114603,1735503064898,-500.0,0.00018198,2]
[347114604,1735503064911,-500.0,0.00018198,2]
[347114605,1735503064923,-500.23,0.00018198,2]
[347114606,1735503064936,-500.0,0.00018198,2]
[347114607,1735503064948,-1940.6,0.00018198,2]
[347114608,1735503064961,-500.0,0.00018198,2]
[347114609,1735503064973,-500.0,0.00018198,2]
[347114610,1735503064985,-500.0,0.00018198,2]
[347114611,1735503064998,-500.0,0.00018198,2]
[347114612,1735503065010,-500.0,0.00018198,2]
[347114613,1735503065023,-500.0,0.00018198,2]
[347114614,1735503065035,-173.77,0.00018198,2]
[347114615,1735503065047,-500.0,0.00018198,2]
[347114616,1735503065060,-629.96,0.00018198,2]
[347114617,1735503065072,-477.84,0.00018198,2]
[347114618,1735503065085,-500.0,0.00018198,2]
[347114619,1735503065098,-1169.28,0.00018198,2]
[347114620,1735503065110,-500.0,0.00018198,2]
[347114621,1735503065122,-500.0,0.00018198,2]
[347114622,1735503065134,-942.62,0.00018198,2]
[347114623,1735503065147,-888.62,0.00018198,2]
[347114624,1735503065159,-500.0,0.00018198,2]
[347114625,1735503065171,-604.4,0.00018198,2]
[347114626,1735503065187,-5874.67,0.00018198,2]
[347114627,1735503065198,-442.98,0.00018199,2]
[347114628,1735503065211,-500.0,0.00018199,2]
[347114629,1735503065224,-1960.19,0.00018199,2]
[347114630,1735503065236,-1628.51,0.00018199,2]
[347114631,1735503065248,-500.0,0.00018199,2]
[347114632,1735503065261,-500.0,0.00018199,2]
[347114633,1735503065273,-375.21,0.00018199,2]
[347114634,1735503065285,-500.0,0.00018199,2]
[347114635,1735503065297,-500.0,0.00018199,2]
[347114636,1735503065310,-500.0,0.00018199,2]
[347114637,1735503065322,-609.65,0.00018199,2]
[347114638,1735503065335,-500.0,0.00018199,2]
[347114639,1735503065347,-500.0,0.00018199,2]
[347114640,1735503065360,-844.57,0.00018199,2]
[347114641,1735503065371,-500.0,0.00018199,2]
[347114642,1735503065383,-500.0,0.00018199,2]
[347114643,1735503065396,-1819.23,0.00018199,2]
[347114644,1735503065408,-500.0,0.00018199,2]
[347114645,1735503065420,-1000.4,0.00018199,2]
[347114646,1735503065431,-500.0,0.00018199,2]
[347114647,1735503065443,-500.0,0.00018199,2]
[347114648,1735503065457,-3895.18,0.00018199,2]
[347114649,1735503065468,-500.0,0.00018199,2]
[347114650,1735503065481,-500.0,0.00018199,2]
[347114651,1735503065492,-500.0,0.00018199,2]
[347114652,1735503065504,-500.0,0.00018199,2]
[347114653,1735503065516,-1046.25,0.00018199,2]
[347114654,1735503065529,-500.0,0.00018199,2]
[347114655,1735503065542,-2932.69,0.00018199,2]
[347114656,1735503065554,-501.01,0.00018199,2]
[347114657,1735503065566,-894.47,0.00018199,2]
[347114658,1735503065579,-500.0,0.00018199,2]
[347114659,1735503065592,-673.33,0.00018199,2]
[347114660,1735503065605,-631.12,0.00018199,2]
[347114661,1735503065616,-1000.0,0.0001822,2]
[347114662,1735503065628,-1716.0,0.0001822,2]
[347114663,1735503065641,-5304.54,0.00018221,2]
[347114664,1735503065652,-1000.0,0.00018248,2]
[347114665,1735503065664,-500.0,0.00018275,2]
[347114666,1735503065675,-845.45,0.00018275,2]
[347114667,1735503065688,-1780.83,0.00018275,2]
[347114668,1735503065700,-525.17,0.00018275,2]
[347114669,1735503065713,-843.1,0.00018275,2]
[347114670,1735503065725,-496.85,0.00018275,2]
[347114671,1735503065737,-1000.0,0.00018275,2]
[347114672,1735503065749,-654.57,0.00018275,2]
[347114673,1735503065762,-1099.79,0.00018275,2]
[347114674,1735503065774,-603.24,0.00018275,2]
[347114675,1735503065787,-608.79,0.00018275,2]
[347114676,1735503065800,-1529.19,0.00018275,2]
[347114677,1735503065813,-500.0,0.00018275,2]
[347114678,1735503065826,-500.0,0.00018276,2]
[347114679,1735503065840,-773.37,0.00018276,2]
[347114680,1735503065854,-500.0,0.00018276,2]
[347114681,1735503065867,-500.0,0.00018276,2]
[347114682,1735503065878,-860.07,0.00018276,2]
[347114683,1735503065887,-500.0,0.00018276,2]
[347114684,1735503065897,-305.86,0.00018276,2]
[347114685,1735503065907,-848.88,0.00018276,2]
[347114686,1735503065917,-1000.0,0.00018303,2]
[347114687,1735503065926,-1000.0,0.0001833,2]
[347114688,1735503065935,-1000.0,0.00018357,2]
[347114689,1735503065945,-1000.0,0.00018385,2]
[347114690,1735503065955,-1716.0,0.00018401,2]
[347114691,1735503065967,-412.77,0.00018412,2]
[347114692,1735503065982,-500.0,0.00018472,2]
[347114693,1735503065991,-500.0,0.00018472,2]
[347114694,1735503066001,-500.0,0.00018472,2]
[347114695,1735503066011,-500.0,0.00018472,2]
[347114696,1735503066021,-500.0,0.00018472,2]
[347114697,1735503066030,-500.0,0.00018472,2]
[347114698,1735503066266,-500.0,0.00018472,2]
[347114699,1735503066281,-500.0,0.00018472,2]
[347114700,1735503066291,-500.0,0.00018472,2]
[347114701,1735503066301,-500.0,0.00018472,2]
[347114702,1735503066310,-500.0,0.00018472,2]
[347114703,1735503066320,-500.0,0.00018472,2]
[347114704,1735503066329,-166.01,0.00018472,2]
[347114705,1735503066338,-500.0,0.00018472,2]
[347114706,1735503066348,-617.43,0.00018472,2]
[347114707,1735503066359,-500.0,0.00018472,2]
[347114708,1735503066368,-500.0,0.00018472,2]
[347114709,1735503066378,-500.0,0.00018472,2]
[347114710,1735503066387,-604.38,0.00018472,2]
[347114711,1735503066397,-500.0,0.00018472,2]
[347114712,1735503066407,-500.0,0.00018472,2]
[347114713,1735503066416,-500.0,0.00018472,2]
[347114714,1735503066426,-500.0,0.00018472,2]
[347114715,1735503066436,-508.09,0.00018472,2]
[347114716,1735503066445,-500.0,0.00018472,2]
[347114717,1735503066455,-166.7,0.00018472,2]
[347114718,1735503066464,-500.0,0.00018472,2]
[347114719,1735503066473,-500.0,0.00018472,2]
[347114720,1735503066482,-667.24,0.00018472,2]
[347114721,1735503066492,-500.0,0.00018472,2]
[347114722,1735503066502,-1151.13,0.00018472,2]
[347114723,1735503066512,-182.45,0.00018472,2]
[347114724,1735503066521,-215.87,0.00018472,2]
[347114725,1735503066530,-500.0,0.00018472,2]
[347114726,1735503066540,-500.0,0.00018472,2]
[347114727,1735503066549,-500.23,0.00018472,2]
[347114728,1735503066559,-500.0,0.00018472,2]
[347114729,1735503066568,-1940.6,0.00018472,2]
[347114730,1735503066578,-500.0,0.00018472,2]
[347114731,1735503066587,-500.0,0.00018472,2]
[347114732,1735503066596,-500.0,0.00018472,2]
[347114733,1735503066606,-245.28,0.00018472,2]
[347114734,1735503066615,-500.0,0.00018472,2]
[347114735,1735503066625,-500.0,0.00018472,2]
[347114736,1735503066633,-500.0,0.00018472,2]
[347114737,1735503066643,-629.96,0.00018472,2]
[347114738,1735503066652,-500.0,0.00018472,2]
[347114739,1735503066662,-1169.28,0.00018472,2]
[347114740,1735503066671,-500.0,0.00018472,2]
[347114741,1735503066680,-500.0,0.00018472,2]
[347114742,1735503066690,-942.62,0.00018472,2]
[347114743,1735503066699,-888.62,0.00018472,2]
[347114744,1735503066709,-500.0,0.00018472,2]
[347114745,1735503066718,-5874.67,0.00018472,2]
[347114746,1735503066728,-500.0,0.00018473,2]
[347114747,1735503066737,-1960.19,0.00018473,2]
[347114748,1735503066747,-1628.51,0.00018473,2]
[347114749,1735503066756,-500.0,0.00018473,2]
[347114750,1735503066766,-500.0,0.00018473,2]
[347114751,1735503066775,-500.0,0.00018473,2]
[347114752,1735503066784,-500.0,0.00018473,2]
[347114753,1735503066793,-500.0,0.00018473,2]
[347114754,1735503066803,-609.65,0.00018473,2]
[347114755,1735503066812,-500.0,0.00018473,2]
[347114756,1735503066822,-192.45,0.00018473,2]
[347114757,1735503066831,-844.57,0.00018473,2]
[347114758,1735503066840,-228.14,0.00018473,2]
[347114759,1735503066849,-500.0,0.00018473,2]
[347114760,1735503066859,-1819.23,0.00018473,2]
[347114761,1735503066868,-275.59,0.00018473,2]
[347114762,1735503066878,-1000.4,0.00018473,2]
[347114763,1735503066887,-500.0,0.00018473,2]
[347114764,1735503066896,-500.0,0.00018473,2]
[347114765,1735503066905,-3895.18,0.00018473,2]
[347114766,1735503066914,-500.0,0.00018473,2]
[347114767,1735503066924,-500.0,0.00018473,2]
[347114768,1735503066933,-500.0,0.00018473,2]
[347114769,1735503066943,-500.0,0.00018473,2]
[347114770,1735503066953,-1046.25,0.00018473,2]
[347114771,1735503066962,-500.0,0.00018473,2]
[347114772,1735503066972,-2932.69,0.00018473,2]
[347114773,1735503066982,-501.01,0.00018473,2]
[347114774,1735503066991,-894.47,0.00018473,2]
[347114775,1735503067001,-500.0,0.00018473,2]
[347114776,1735503067011,-673.33,0.00018473,2]
[347114777,1735503067020,-631.12,0.00018473,2]
[347114778,1735503067029,-5304.54,0.00018495,2]
[347114779,1735503067039,-1000.0,0.00018499,2]
[347114780,1735503067048,-1367.7,0.00018547,2]
[347114781,1735503067058,-351.66,0.00018549,2]
[347114782,1735503067067,-845.45,0.00018549,2]
[347114783,1735503067076,-1780.83,0.00018549,2]
[347114784,1735503067085,-525.17,0.00018549,2]
[347114785,1735503067094,-843.1,0.00018549,2]
[347114786,1735503067104,-654.57,0.00018549,2]
[347114787,1735503067113,-1099.79,0.00018549,2]
[347114788,1735503067123,-603.24,0.00018549,2]
[347114789,1735503067133,-608.79,0.00018549,2]
[347114790,1735503067142,-1529.19,0.00018549,2]
[347114791,1735503067151,-500.0,0.00018549,2]
[347114792,1735503067161,-346.78,0.0001855,2]
[347114793,1735503067170,-773.37,0.0001855,2]
[347114794,1735503067182,-500.0,0.0001855,2]
[347114795,1735503067191,-500.0,0.0001855,2]
[347114796,1735503067200,-860.07,0.0001855,2]
[347114797,1735503067209,-500.0,0.0001855,2]
[347114798,1735503067219,-848.88,0.0001855,2]
[347114799,1735503067228,-152.0,0.00018562,3]
[347114800,1735503067237,-1716.0,0.00018581,2]
[347114801,1735503067246,-500.0,0.0001863,2]
[347114802,1735503067258,-868.7,0.0001864,2]
[347114803,1735503067267,-500.0,0.00018746,2]
[347114804,1735503067277,-500.0,0.00018746,2]
[347114805,1735503067287,-606.08,0.00018746,2]
[347114806,1735503067296,-500.0,0.00018746,2]
[347114807,1735503067305,-500.0,0.00018746,2]
[347114808,1735503067314,-267.54,0.00018746,2]
[347114809,1735503067323,-500.0,0.00018746,2]
[347114810,1735503067332,-500.0,0.00018746,2]
[347114811,1735503067341,-500.0,0.00018746,2]
[347114812,1735503067350,-276.86,0.00018746,2]
[347114813,1735503067359,-500.0,0.00018746,2]
[347114814,1735503067368,-587.37,0.00018746,2]
[347114815,1735503067379,-500.0,0.00018746,2]
[347114816,1735503067388,-500.0,0.00018746,2]
[347114817,1735503067397,-500.0,0.00018746,2]
[347114818,1735503067406,-500.0,0.00018746,2]
[347114819,1735503067415,-500.0,0.00018746,2]
[347114820,1735503067424,-500.0,0.00018746,2]
[347114821,1735503067434,-500.0,0.00018746,2]
[347114822,1735503067443,-500.0,0.00018746,2]
[347114823,1735503067452,-500.0,0.00018746,2]
[347114824,1735503067461,-500.0,0.00018746,2]
[347114825,1735503067471,-256.35,0.00018746,2]
[347114826,1735503067480,-667.24,0.00018746,2]
[347114827,1735503067490,-500.0,0.00018746,2]
[347114828,1735503067502,-1151.13,0.00018746,2]
[347114829,1735503067511,-500.0,0.00018746,2]
[347114830,1735503067521,-500.0,0.00018746,2]
[347114831,1735503067530,-500.23,0.00018746,2]
[347114832,1735503067539,-363.04,0.00018746,2]
[347114833,1735503067549,-1940.6,0.00018746,2]
[347114834,1735503067558,-500.0,0.00018746,2]
[347114835,1735503067567,-500.0,0.00018746,2]
[347114836,1735503067576,-500.0,0.00018746,2]
[347114837,1735503067586,-500.0,0.00018746,2]
[347114838,1735503067595,-500.0,0.00018746,2]
[347114839,1735503067604,-500.0,0.00018746,2]
[347114840,1735503067613,-629.96,0.00018746,2]
[347114841,1735503067622,-629.06,0.00018746,2]
[347114842,1735503067632,-1169.28,0.00018746,2]
[347114843,1735503067641,-500.0,0.00018746,2]
[347114844,1735503067651,-500.0,0.00018746,2]
[347114845,1735503067660,-942.62,0.00018746,2]
[347114846,1735503067669,-888.62,0.00018746,2]
[347114847,1735503067679,-500.0,0.00018746,2]
[347114848,1735503067688,-5874.67,0.00018746,2]
[347114849,1735503067697,-234.58,0.00018747,2]
[347114850,1735503067706,-1960.19,0.00018747,2]
[347114851,1735503067715,-1628.51,0.00018747,2]
[347114852,1735503067724,-500.0,0.00018747,2]
[347114853,1735503067733,-500.0,0.00018747,2]
[347114854,1735503067742,-178.58,0.00018747,2]
[347114855,1735503067754,-500.0,0.00018747,2]
[347114856,1735503067763,-500.0,0.00018747,2]
[347114857,1735503067772,-609.65,0.00018747,2]
[347114858,1735503067781,-565.41,0.00018747,2]
[347114859,1735503067791,-844.57,0.00018747,2]
[347114860,1735503067802,-500.0,0.00018747,2]
[347114861,1735503067810,-1819.23,0.00018747,2]
[347114862,1735503067820,-1000.4,0.00018747,2]
[347114863,1735503067829,-550.59,0.00018747,2]
[347114864,1735503067838,-500.0,0.00018747,2]
[347114865,1735503067847,-3895.18,0.00018747,2]
[347114866,1735503067857,-335.41,0.00018747,2]
[347114867,1735503067866,-500.0,0.00018747,2]
[347114868,1735503067875,-1644.32,0.00018747,2]
[347114869,1735503067883,-500.0,0.00018747,2]
[347114870,1735503067893,-500.0,0.00018747,2]
[347114871,1735503067903,-1046.25,0.00018747,2]
[347114872,1735503067912,-500.0,0.00018747,2]
[347114873,1735503067921,-501.01,0.00018747,2]
[347114874,1735503067930,-894.47,0.00018747,2]
[347114875,1735503067940,-500.0,0.00018747,2]
[347114876,1735503067949,-673.33,0.00018747,2]
[347114877,1735503067959,-631.12,0.00018747,2]
[347114878,1735503067968,-845.45,0.00018823,2]
[347114879,1735503067977,-1780.83,0.00018823,2]
[347114880,1735503068007,-525.17,0.00018823,2]
[347114881,1735503068016,-843.1,0.00018823,2]
[347114882,1735503068025,-654.57,0.00018823,2]
[347114883,1735503068034,-1099.79,0.00018823,2]
[347114884,1735503068043,-603.24,0.00018823,2]
[347114885,1735503068052,-608.79,0.00018823,2]
[347114886,1735503068062,-1529.19,0.00018823,2]
[347114887,1735503068071,-500.0,0.00018823,2]
[347114888,1735503068081,-773.37,0.00018824,2]
[347114889,1735503068090,-500.0,0.00018824,2]
[347114890,1735503068100,-500.0,0.00018824,2]
[347114891,1735503068109,-860.07,0.00018824,2]
[347114892,1735503068118,-500.0,0.00018824,2]
[347114893,1735503068128,-848.88,0.00018824,2]
[347114894,1735503068137,-300.0,0.00018904,2]
[347114895,1735503068147,-466.454,0.0001898,2]
[347114896,1735503068157,-500.0,0.00019,7]
[347114897,1735503068165,-500.0,0.00019,7]
[347114898,1735503068177,-500.0,0.00019,7]
[347114899,1735503068187,-500.0,0.00019,7]
[347114900,1735503068196,-500.0,0.00019,7]
[347114901,1735503068205,-500.0,0.00019,7]
[347114902,1735503068215,-500.0,0.00019,7]
[347114903,1735503068224,-500.0,0.00019,7]
[347114904,1735503068233,-500.0,0.00019,7]
[347114905,1735503068243,-500.0,0.00019,7]
[347114906,1735503068254,-481.24,0.00019,7]
[347114907,1735503068263,-3000.0,0.00019,2]
[347114908,1735503068272,-500.0,0.0001902,2]
[347114909,1735503068282,-500.0,0.0001902,2]
[347114910,1735503068291,-500.0,0.0001902,2]
[347114911,1735503068301,-500.0,0.0001902,2]
[347114912,1735503068310,-565.22,0.0001902,2]